bitfinex-derivatives/quotes_ETHF0:USTF0_20250730
["timestamp","ask_amount","ask_price","bid_price","bid_amount"]
[1753833827461,2.1845,3788.2,3788.1,5.0412]
[1753833827863,2.1845,3788.2,3788.1,5.4296]
[1753833828363,1.6835,3788.5,3788.4,2.2218]
[1753833828563,2.1845,3788.5,3788.4,1.8334]
[1753833833364,2.1845,3788.5,3788.4,1.3205]
[1753833833864,2.1845,3788.4,3788.3,0.52801]
[1753833834067,2.1845,3788.3,3788.2,2.36142]
[1753833834563,0.501,3788.6,3788.5,0.5607]
[1753833834769,1.8111,3788.6,3788.5,2.36139]
[1753833835058,1.8111,3788.6,3788.5,1.8334]
[1753833835264,2.1845,3788.6,3788.5,1.8334]
[1753833835963,0.2554,3788.7,3788.6,2.12117]
[1753833836265,0.6288,3788.7,3788.6,2.23687]
[1753833836460,3.4632,3788.9,3788.8,1.84845]
[1753833836655,3.8366,3788.9,3788.8,2.74975]
[1753833837364,5.3923,3788.9,3788.8,2.2218]
[1753833837564,5.3923,3788.9,3788.8,1.8334]
[1753833838263,5.3923,3788.9,3788.8,1.3205]
[1753833838462,1.5557,3788.6,3788.5,0.9903]
[1753833838662,0.2554,3788.3,3788.2,5.80202]
[1753833838866,2.1845,3788.3,3788.2,6.5945]
[1753833839066,5.3923,3788.3,3788.2,5.5724]
[1753833839664,5.3923,3788.3,3788.2,5.274]
[1753833840767,2.1845,3788.3,3788.2,7.1074]
[1753833841170,2.1845,3788.3,3788.2,6.2643]
[1753833841368,2.1845,3788.3,3788.2,5.8347]
[1753833842065,0.9752,3788.3,3788.2,7.4958]
[1753833842465,1.4762,3788.3,3788.2,7.4958]
[1753833842666,2.1845,3788.3,3788.2,7.4958]
[1753833843071,2.1845,3788.3,3788.2,2.2218]
[1753833843269,1.7586,3788.3,3788.2,2.2218]
[1753833843470,0.9269,3788.6,3788.2,2.2218]
[1753833843671,0.8744,3788.5,3788.4,0.8909]
[1753833843871,2.71249,3788.5,3788.4,1.8334]
[1753833844072,2.1845,3788.5,3788.4,2.7498]
[1753833844274,2.1845,3788.5,3788.4,2.2218]
[1753833844573,2.1845,3788.5,3788.4,1.8334]
[1753833845175,2.1845,3788.5,3788.4,1.3205]
[1753833846183,2.1845,3788.5,3788.4,0.9903]
[1753833847675,2.1845,3788.5,3788.4,1.3205]
[1753833847879,2.1845,3788.5,3788.4,1.8334]
[1753833849475,2.1845,3788.5,3788.4,1.3205]
[1753833850874,1.8111,3788.5,3788.3,0.528]
[1753833851071,2.1845,3788.4,3788.3,1.8485]
[1753833851277,2.1845,3788.4,3788.3,2.7498]
[1753833851582,1.7586,3788.4,3788.3,2.7498]
[1753833851778,0.6288,3788.4,3788.3,2.7498]
[1753833852377,1.1298,3788.4,3788.3,2.7498]
[1753833852576,1.4762,3788.4,3788.3,2.7498]
[1753833852778,2.1845,3788.4,3788.3,2.7498]
[1753833853678,3.2078,3788.7,3788.5,1.41789]
[1753833853679,0.8617,3788.6,3788.5,1.41789]
[1753833853892,3.2078,3789.2,3788.3,3.2078]
[1753833853893,0.9143,3789.1,3789.0,1.2745]
[1753833854182,2.2065,3789.1,3789.0,1.2745]
[1753833854381,2.2065,3789.1,3789.0,2.2267]
[1753833854582,2.7344,3789.1,3789.0,2.2267]
[1753833854784,2.7344,3789.1,3788.7,0.8937]
[1753833854983,2.2065,3788.9,3788.8,0.4431]
[1753833855376,2.2048073,3788.9,3788.8,0.7438]
[1753833855571,2.2048073,3788.9,3788.8,1.0074]
[1753833855877,2.2048073,3788.9,3788.8,1.53535]
[1753833856786,2.2048073,3788.9,3788.8,1.86095]
[1753833856982,2.2048073,3788.9,3788.8,2.37175]
[1753833857888,2.2048073,3788.9,3788.8,1.8438]
[1753833859181,1.4338573,3788.9,3788.6,0.52797]
[1753833859385,1.4338573,3788.9,3788.6,0.97107]
[1753833859386,2.2065,3788.7,3788.6,0.97107]
[1753833859682,2.2065,3788.7,3788.5,0.52798]
[1753833859991,0.9076,3788.2,3788.0,5.274]
[1753833860284,1.43566,3788.1,3788.0,0.3007]
[1753833860488,1.43566,3788.1,3788.0,0.7438]
[1753833860489,2.73456,3788.1,3788.0,0.7438]
[1753833860679,2.2065,3788.1,3788.0,0.7438]
[1753833860986,2.2065,3788.1,3788.0,1.8438]
[1753833861486,2.2065,3788.1,3788.0,2.37186]
[1753833862480,2.2065,3788.1,3788.0,1.8438]
[1753833863884,2.2065,3788.1,3788.0,1.333]
[1753833864286,2.2065,3788.1,3788.0,1.8438]
[1753833864482,2.0472393,3788.1,3788.0,1.8438]
[1753833869084,2.0472393,3788.1,3788.0,1.0074]
[1753833869287,2.0472393,3788.1,3788.0,0.3007]
[1753833869985,2.0472393,3788.1,3788.0,0.7438]
[1753833870690,2.0472393,3788.1,3788.0,1.0074]
[1753833871785,2.0472393,3788.1,3788.0,1.5125]
[1753833876589,2.0472393,3788.1,3788.0,1.8381]
[1753833881896,2.0472393,3788.1,3788.0,1.0074]
[1753833882091,0.9076,3787.9,3787.8,0.4431]
[1753833882397,0.52809,3787.8,3787.7,3.2078]
[1753833882589,2.73459,3787.8,3787.7,3.2078]
[1753833882996,29.13835135,3787.8,3787.7,0.47963002]
[1753833883192,1.0538,3787.1,3787.0,0.7073]
[1753833883492,2.2065,3787.1,3787.0,1.5972]
[1753833883694,2.2065,3787.1,3787.0,0.2642]
[1753833883891,2.41726894,3787.1,3787.0,0.2642]
[1753833884097,7.48667952,3787.1,3787.0,0.2642]
[1753833884296,1.8679,3787.0,3786.9,0.2642]
[1753833884493,2.2203,3787.0,3786.9,0.2642]
[1753833886990,2.2203,3787.0,3786.9,1.2241]
[1753833887188,2.2203,3787.0,3786.9,2.1141]
[1753833887399,0.9381,3787.0,3786.9,2.4904]
[1753833887595,5.28017952,3787.1,3787.0,1.4182]
[1753833887896,5.28017952,3787.1,3787.0,2.7544]
[1753833888200,4.34637952,3787.1,3787.0,2.7544]
[1753833890200,4.34637952,3787.1,3787.0,3.0186]
[1753833891301,5.28447952,3787.1,3787.0,3.0186]
[1753833891497,5.72657952,3787.1,3787.0,3.0186]
[1753833891801,1.3802,3787.1,3787.0,3.0186]
[1753833892203,1.8883,3787.1,3787.0,3.0186]
[1753833892606,38.3955,3788.2,3787.2,0.2642]
[1753833892796,38.023,3788.2,3788.1,1.39314]
[1753833892995,43.67665551,3788.2,3788.1,2.29184]
[1753833893303,44.62685551,3788.2,3788.1,1.91554]
[1753833893499,44.62685551,3788.2,3788.1,1.1223]
[1753833893700,0.8976,3787.9,3787.8,1.22999]
[1753833893903,2.2203,3787.9,3787.8,1.91559]
[1753833894100,2.2203,3787.9,3787.8,2.29189]
[1753833898604,1.7122,3787.9,3787.8,2.29189]
[1753833898808,0.9381,3787.9,3787.8,2.29189]
[1753833899807,1.3802,3787.9,3787.8,2.29189]
[1753833900511,2.2203,3787.9,3787.8,2.29189]
[1753833901810,0.6281,3787.2,3787.1,1.3881]
[1753833902001,2.2203,3787.2,3787.1,1.6517]
[1753833902203,0.9381,3787.2,3787.1,2.55618]
[1753833902808,0.8976,3787.5,3787.1,0.6405]
[1753833903013,1.2701,3787.4,3787.3,1.7638]
[1753833903510,2.2203,3787.6,3787.5,1.3875]
[1753833906417,2.2203,3787.6,3787.5,1.7638]
[1753833906611,1.7122,3787.6,3787.5,1.7638]
[1753833907312,21.122,3787.9,3787.5,1.7638]
[1753833907313,0.4421,3788.1,3788.0,0.52806]
[1753833907521,2.2203,3788.1,3788.0,2.29186]
[1753833908208,2.2203,3788.1,3787.9,0.52806]
[1753833908409,0.5656,3788.0,3787.9,0.52806]
[1753833908618,2.2203,3788.0,3787.9,1.05046]
[1753833908809,2.2203,3788.0,3787.9,1.75236]
[1753833909317,2.2203,3788.0,3787.9,1.2243]
[1753833911411,2.2203,3788.0,3787.9,0.8587]
[1753833911619,0.8976,3787.6,3787.5,0.86442]
[1753833911918,2.2203,3787.6,3787.5,1.29122]
[1753833912110,2.2203,3787.6,3787.5,1.76952]
[1753833912310,1.3802,3787.6,3787.5,1.43322]
[1753833912616,2.2203,3787.6,3787.5,2.29192]
[1753833914120,1.7122,3787.6,3787.5,2.29192]
[1753833914315,0.9134,3787.9,3787.8,1.55948]
[1753833914520,2.3177,3787.9,3787.8,2.26618]
[1753833915120,2.3177,3787.9,3787.8,1.89348]
[1753833915718,2.3177,3787.9,3787.8,1.1005]
[1753833915918,2.3177,3787.9,3787.8,0.334]
[1753833916311,0.9134,3787.9,3787.7,0.52809]
[1753833916520,2.3177,3787.8,3787.7,0.52809]
[1753833916720,2.3177,3787.8,3787.7,1.03629]
[1753833917120,2.3177,3787.8,3787.7,1.37029]
[1753833917425,2.3177,3787.8,3787.7,0.8422]
[1753833918216,0.9134,3787.3,3787.2,0.52816]
[1753833918418,2.3177,3787.3,3787.2,1.73056]
[1753833918614,2.3177,3787.3,3787.1,0.2642]
[1753833918615,2.3177,3787.2,3787.1,0.2642]
[1753833919027,2.3177,3787.2,3787.0,0.2642]
[1753833919220,2.3177,3787.1,3787.0,0.8565]
[1753833919517,0.9753,3787.4,3787.3,1.75806]
[1753833919920,1.4332,3787.4,3787.3,1.75806]
[1753833920121,2.3177,3787.4,3787.3,2.26626]
[1753833921121,21.118,3787.6,3787.5,0.52813]
[1753833921323,2.3177,3787.6,3787.5,2.26623]
[1753833922026,2.3177,3787.6,3787.0,0.2642]
[1753833922228,0.9134,3787.3,3787.2,1.38467]
[1753833922522,2.3177,3787.3,3787.2,1.99477]
[1753833922723,2.3177,3787.3,3787.2,2.53047]
[1753833925324,2.3177,3787.3,3787.2,2.15777]
[1753833925519,1.6417,3787.3,3787.2,1.89947]
[1753833925724,1.6417,3787.3,3787.2,0.2642]
[1753833926424,0.7572,3787.3,3787.2,0.2642]
[1753833926620,1.6417,3787.3,3787.2,0.2642]
[1753833927122,1.1838,3787.3,3787.2,0.5982]
[1753833930021,0.6417,3787.3,3787.2,0.5982]
[1753833930225,1.1838,3787.3,3787.2,1.1064]
[1753833930525,1.8598,3787.3,3787.2,1.7374]
[1753833930721,2.3177,3787.3,3787.2,2.0023]
[1753833931628,2.3177,3787.5,3787.4,1.7381]
[1753833931930,1.9134,3787.5,3787.4,1.7381]
[1753833932227,2.3177,3787.5,3787.4,1.7381]
[1753833932728,1.7756,3787.8,3787.7,1.1204]
[1753833932927,2.3177,3787.8,3787.7,1.8935]
[1753833933133,2.3177,3787.8,3787.7,2.2662]
[1753833933333,1.4332,3788.2,3788.1,1.65603]
[1753833933532,2.3177,3788.2,3788.1,1.12033]
[1753833933729,2.3177,3788.2,3788.1,0.86203]
[1753833934032,2.3177,3788.2,3788.1,0.52803]
[1753833934335,2.3177,3788.2,3788.1,1.37023]
[1753833934634,2.3177,3788.2,3788.1,0.86203]
[1753833934835,0.676,3788.1,3788.0,0.52805]
[1753833935037,2.3177,3788.1,3788.0,0.52805]
[1753833935438,2.3177,3788.0,3787.8,0.1019]
[1753833935632,1.9134,3787.8,3787.7,0.5281]
[1753833935930,2.84579,3787.8,3787.5,0.52813]
[1753833936138,0.9134,3787.6,3787.5,0.52813]
[1753833936342,0.9134,3787.6,3787.4,1.03633]
[1753833936531,0.52809,3787.8,3787.4,1.03633]
[1753833936532,2.3177,3787.5,3787.4,1.03633]
[1753833936732,2.3177,3787.5,3787.4,0.52813]
[1753833937335,2.3177,3787.4,3787.3,1.62865]
[1753833937641,2.3177,3787.4,3787.1,0.4745]
[1753833937642,0.9134,3787.4,3787.2,0.79236]
[1753833937834,2.3177,3787.3,3787.2,0.79236]
[1753833939443,2.3177,3787.3,3787.1,0.2642]
[1753833939444,0.4043,3787.2,3787.1,0.2642]
[1753833939740,2.3177,3787.2,3787.1,0.2642]
[1753833940239,2.3177,3787.2,3787.1,1.4665]
[1753833940441,2.3177,3787.2,3787.1,1.6294]
[1753833940642,2.3177,3787.2,3787.1,1.3647]
[1753833940840,2.3177,3787.2,3787.1,1.4665]
[1753833941343,2.3177,3787.2,3787.1,1.6294]
[1753833941635,2.3177,3787.2,3787.1,2.0021]
[1753833941835,1.7756,3787.2,3787.1,2.0021]
[1753833942238,0.9753,3787.2,3787.1,2.0021]
[1753833942437,1.1131,3787.4,3787.3,0.7552]
[1753833942642,1.9753,3787.4,3787.3,1.7379]
[1753833942937,2.3177,3787.4,3787.3,1.7379]
[1753833944539,2.3177,3787.4,3787.3,1.3652]
[1753833946342,2.3177,3787.4,3787.3,0.334]
[1753833946946,2.3177,3787.4,3787.3,1.2264]
[1753833947544,2.3177,3787.4,3787.3,1.1244]
[1753833947739,1.8559,3787.3,3787.2,0.2642]
[1753833947945,2.2548,3787.3,3787.2,0.2642]
[1753833948441,2.78297,3787.3,3787.2,1.129]
[1753833949545,2.2548,3787.3,3787.2,1.129]
[1753833951252,2.2548,3787.3,3787.2,0.597]
[1753833951544,2.2548,3787.3,3787.2,1.129]
[1753833952942,2.2548,3787.3,3787.2,1.4894]
[1753833954051,1.43425,3786.7,3786.6,0.5912]
[1753833954349,2.2548,3786.7,3786.6,1.2252]
[1753833956351,2.2548,3786.7,3786.6,1.3885]
[1753833958247,2.2548,3786.6,3786.5,0.3328]
[1753833958448,1.8559,3786.3,3786.2,0.71168795]
[1753833958651,2.2548,3786.3,3786.2,0.01848795]
[1753833958857,2.2548,3786.3,3786.2,0.71168795]
[1753833959053,2.2548,3786.3,3786.2,1.24368795]
[1753833959254,2.4676896,3786.3,3786.2,0.01848795]
[1753833959655,2.2548,3786.3,3786.2,0.01848795]
[1753833960357,2.2548,3786.3,3786.2,0.88328795]
[1753833960550,2.2548,3786.3,3786.2,1.24368795]
[1753833961047,2.2548,3786.3,3786.2,1.14168795]
[1753833961648,2.2548,3786.3,3786.2,1.79948795]
[1753833962444,2.2548,3786.3,3786.2,0.01848795]
[1753833962758,12.53707137,3786.3,3786.2,0.01848795]
[1753833964553,1.91435,3785.9,3785.8,0.19546469]
[1753833968660,2.78315,3785.9,3785.8,0.19546469]
[1753833972263,8.06597948,3785.9,3785.8,0.19546469]
[1753833973762,8.03067948,3785.9,3785.8,0.99496469]
[1753833974063,8.03067948,3785.9,3785.8,2.01256469]
[1753833974261,8.03067948,3785.9,3785.8,1.31556469]
[1753833974467,8.03067948,3785.9,3785.8,0.19546469]
[1753833981368,2.74375,3785.2,3785.1,1.2373]
[1753833982064,2.74375,3785.2,3785.1,1.4305]
[1753833985170,2.74375,3785.2,3784.7,0.52851]
[1753833985171,1.4523,3784.8,3784.7,1.8138]
[1753833985369,1.3864,3784.8,3784.7,1.8138]
[1753833986270,2.2153,3784.8,3784.7,1.8138]
[1753833992769,0.4822,3784.8,3784.7,0.8617]
[1753833992969,0.4822,3784.8,3783.0,3.40376642]
[1753833992970,0.52871,3783.3,3783.0,3.40376642]
[1753833993274,5.28588,3784.3,3782.8,1.3192]
[1753833993275,21.252,3783.2,3782.8,1.3192]
[1753833993569,3.4730454,3783.2,3783.1,0.3833]
[1753833993770,5.28436488,3783.2,3783.1,1.7025]
[1753833994078,3.4730454,3784.2,3781.8,1.51795143]
[1753833994079,1.3168,3784.5,3783.2,0.2668]
[1753833994272,1.42719,3783.5,3783.4,0.2548]
[1753833994575,2.74399,3783.5,3783.4,0.2548]
[1753833994771,1.88986,3783.0,3782.9,0.2548]
[1753833995575,2.74406,3783.0,3782.9,0.2548]
[1753833995773,2.2153,3783.0,3782.9,0.2548]
[1753833996167,0.372,3782.9,3781.2,1.32249]
[1753833996368,1.2009,3782.9,3782.8,0.5216]
[1753833996675,0.372,3783.7,3783.4,0.2668]
[1753833996868,0.372,3784.0,3783.7,0.2668]
[1753833997069,0.8542,3784.2,3784.1,0.2548]
[1753833997271,1.1123,3784.2,3784.1,0.5216]
[1753833997470,0.372,3784.2,3784.1,0.5216]
[1753833997672,38.053,3784.4,3784.3,0.5216]
[1753833998078,38.425,3784.4,3784.3,0.5216]
[1753833998378,38.9072,3784.4,3784.3,0.5216]
[1753833999570,2.05614757,3784.8,3784.3,0.52857]
[1753833999775,23.3333,3784.7,3784.6,0.2548]
[1753834000179,24.50209344,3784.7,3784.6,0.2548]
[1753834001181,22.65379344,3784.7,3784.6,0.5216]
[1753834001379,23.2377,3784.7,3784.6,0.5216]
[1753834001582,23.7003,3784.7,3784.6,0.2548]
[1753834002076,23.7003,3784.7,3783.3,1.32176]
[1753834002381,7.03720451,3784.7,3784.6,0.2548]
[1753834002579,2.2153,3784.7,3784.6,0.2548]
[1753834002781,21.486,3784.8,3784.6,0.5059]
[1753834002979,0.4626,3785.2,3784.9,0.52849]
[1753834003184,24.03559595,3785.1,3785.0,1.0436]
[1753834003782,2.54959595,3785.1,3785.0,1.0436]
[1753834004468,1.82999595,3785.1,3785.0,1.0431]
[1753834004675,3.20609595,3785.1,3785.0,0.6607]
[1753834005482,3.20609595,3785.1,3785.0,0.5059]
[1753834005680,3.20609595,3785.1,3785.0,0.2548]
[1753834006481,2.4092,3785.1,3785.0,0.2548]
[1753834006683,22.8983,3785.2,3785.1,0.5232]
[1753834006884,23.2027,3785.2,3785.1,0.5232]
[1753834007177,23.5004,3785.2,3785.1,1.0597]
[1753834007682,23.9232,3785.2,3785.1,1.0597]
[1753834008580,23.9232,3785.2,3785.1,0.6773]
[1753834009176,23.9232,3785.2,3785.1,0.2766]
[1753834010679,23.9232,3785.2,3785.1,0.5232]
[1753834010882,0.6721,3784.7,3784.6,0.77513]
[1753834011081,2.4092,3784.7,3784.6,1.58823]
[1753834012079,1.9864,3784.7,3784.6,1.58823]
[1753834012583,2.4092,3784.7,3784.6,1.58823]
[1753834013885,1.9864,3784.7,3784.6,1.58823]
[1753834014487,1.3308,3784.7,3784.6,1.58823]
[1753834014686,0.431,3784.7,3784.6,1.58823]
[1753834015080,1.0331,3784.7,3784.6,1.58823]
[1753834016588,1.9864,3784.7,3784.6,1.58823]
[1753834016791,2.4092,3784.7,3784.6,1.20583]
[1753834018289,0.9533,3784.7,3784.1,0.5365]
[1753834018590,21.476,3785.1,3784.2,0.80518]
[1753834018591,2.4092,3784.3,3784.2,0.80518]
[1753834018784,2.4092,3784.3,3784.2,1.05178]
[1753834018984,2.4092,3784.3,3784.2,1.20588]
[1753834020090,2.4092,3784.3,3784.2,1.05178]
[1753834020488,2.4092,3784.3,3784.2,1.58828]
[1753834021687,2.40238723,3784.3,3784.2,1.60648]
[1753834023490,1.5554,3784.6,3784.5,0.52855]
[1753834023791,2.4092,3784.6,3784.5,1.60645]
[1753834024681,1.9864,3784.6,3784.5,1.60645]
[1753834025287,2.4092,3784.6,3784.5,1.60645]
[1753834025893,0.431,3784.6,3784.5,1.60645]
[1753834026290,1.9864,3784.6,3784.5,1.60645]
[1753834026487,2.4092,3784.6,3784.5,0.52855]
[1753834026991,2.4092,3784.6,3784.5,0.81215]
[1753834027180,2.4092,3784.6,3784.5,1.22405]
[1753834027781,2.4092,3785.1,3785.0,0.52847]
[1753834028088,0.9533,3785.1,3784.9,0.52848]
[1753834028297,2.4092,3785.0,3784.9,0.52848]
[1753834033600,1.4559,3784.9,3784.8,0.5285]
[1753834033794,2.4092,3784.9,3784.8,0.5285]
[1753834034900,2.4092,3784.9,3784.8,0.8029]
[1753834035695,2.4092,3784.9,3784.8,1.1584]
[1753834035890,2.4092,3784.9,3784.8,1.5253]
[1753834036394,2.4087,3785.4,3785.3,0.52843]
[1753834036600,27.81083621,3785.4,3785.3,0.80283]
[1753834036794,6.43683621,3785.4,3785.3,0.80283]
[1753834036999,26.41913621,3785.4,3785.3,1.02483]
[1753834037200,28.33925621,3785.4,3785.3,0.6299]
[1753834037395,28.33925621,3785.4,3785.3,0.2692]
[1753834037605,2.4087,3785.3,3785.2,0.80284]
[1753834037900,3.22903621,3785.3,3785.2,0.80284]
[1753834038294,3.22903621,3785.3,3785.2,0.2744]
[1753834038996,3.22903621,3785.3,3785.2,0.2692]
[1753834039397,0.8842,3785.2,3785.0,0.66717]
[1753834039591,2.4087,3785.1,3785.0,0.93637]
[1753834040201,2.4087,3785.1,3785.0,1.15837]
[1753834040793,0.424,3785.1,3785.0,1.15837]
[1753834040998,26.5665,3785.4,3785.3,1.15833]
[1753834041207,27.38780193,3785.4,3785.3,1.15833]
[1753834041394,27.81180193,3785.4,3785.3,1.15833]
[1753834044302,26.9905,3785.4,3785.3,1.15833]
[1753834046316,26.9905,3785.4,3785.3,0.80283]
[1753834048817,26.9905,3785.4,3785.3,1.15833]
[1753834049319,23.7827,3785.4,3785.3,1.15833]
[1753834049520,26.9905,3785.4,3785.3,1.15833]
[1753834050316,26.9395,3785.4,3785.3,1.52523]
[1753834051116,24.9498,3785.4,3785.3,1.52523]
[1753834051620,25.5082,3785.4,3785.3,1.52523]
[1753834051814,25.9684,3785.4,3785.3,1.52523]
[1753834052211,26.9345,3785.4,3785.3,1.52523]
[1753834052426,5.6165,3785.4,3785.3,1.15833]
[1753834052619,26.9305,3785.4,3785.3,1.15833]
[1753834054525,0.2923,3785.1,3785.0,0.52847]
[1753834054719,2.4087,3785.1,3785.0,0.52847]
[1753834055018,1.0186,3785.0,3784.4,5.274]
[1753834055217,0.52856,3784.4,3783.9,0.66213]
[1753834055421,2.4087,3783.9,3783.8,1.15854]
[1753834056518,5.6165,3783.9,3783.8,0.6299]
[1753834058121,5.6165,3783.9,3783.8,0.9968]
[1753834058825,25.9331,3784.3,3784.2,0.4912]
[1753834059121,3.2078,3784.3,3784.2,1.52539]
[1753834059422,21.305,3784.5,3784.4,1.01976]
[1753834059623,23.0399,3784.5,3784.4,1.52536]
[1753834060029,1.7349,3784.5,3784.4,1.52536]
[1753834060226,2.4087,3784.5,3784.4,1.52536]
[1753834062824,2.4087,3784.5,3782.6,2.31802079]
[1753834062825,2.5135,3782.7,3782.6,2.31802079]
[1753834063026,2.5135,3782.7,3782.6,2.3992]
[1753834063027,3.2078,3782.7,3782.6,2.3992]
[1753834063328,38.056,3783.6,3783.5,2.3992]
[1753834063329,5.28478378,3783.6,3783.5,2.3992]
[1753834063524,0.52863,3783.9,3783.6,2.3992]
[1753834063821,0.52853,3784.6,3783.9,1.5051]
[1753834064026,0.52853,3784.6,3783.8,3.2078]
[1753834064027,1.1205,3784.7,3784.6,2.3001]
[1753834064325,1.1205,3784.7,3784.6,2.8166]
[1753834065821,0.2576,3784.7,3784.6,8.10110451]
[1753834066018,3.2078,3784.8,3784.7,0.52852]
[1753834066221,3.2078,3785.2,3785.0,1.67297]
[1753834066425,3.2078,3785.2,3785.1,2.8166]
[1753834066620,3.2078,3785.6,3785.2,0.52845]
[1753834066930,4.3283,3785.6,3785.5,2.8166]
[1753834067423,3.2078,3785.6,3785.5,8.62846749]
[1753834067629,0.2,3785.9,3785.8,3.34496]
[1753834068728,0.5751,3785.9,3785.8,2.8166]
[1753834068932,1.3205,3785.9,3785.8,2.3276]
[1753834069526,0.2576,3785.1,3785.0,0.5165]
[1753834069719,0.3751,3785.1,3785.0,1.2131]
[1753834069918,0.1175,3785.1,3785.0,1.2131]
[1753834070932,0.1175,3785.1,3785.0,11.49704605]
[1753834073432,0.1175,3785.1,3785.0,6.49704605]
[1753834076333,0.4605,3785.1,3785.0,6.49704605]
[1753834076540,0.1175,3785.1,3785.0,7.61154605]
[1753834076932,3.9769,3785.7,3785.6,1.1445]
[1753834077138,4.3003,3785.7,3785.6,2.8166]
[1753834077436,4.3003,3785.7,3785.6,7.61154605]
[1753834078539,3.2078,3785.7,3785.6,7.61154605]
[1753834078839,3.2078,3785.7,3785.6,8.10054605]
[1753834079540,0.2,3785.9,3785.8,2.3001]
[1753834079838,0.2,3785.9,3785.8,8.09970858]
[1753834080635,1.2925,3785.9,3785.8,5.79960858]
[1753834080939,1.4498,3785.9,3785.8,0.5165]
[1753834081142,1.2925,3785.9,3785.8,0.5165]
[1753834081335,1.2925,3785.9,3785.8,1.5326]
[1753834081733,0.7691,3785.2,3784.8,0.5165]
[1753834081934,0.2517,3784.3,3784.2,1.661]
[1753834082130,1.0925,3784.3,3784.2,2.8166]
[1753834083838,0.883,3784.3,3784.2,2.8166]
[1753834084142,1.0925,3784.3,3784.2,2.8166]
[1753834084539,0.883,3784.3,3784.2,2.8166]
[1753834084841,40.9139,3784.7,3784.6,2.8166]
[1753834085344,0.883,3784.7,3784.6,2.8166]
[1753834085739,1.0925,3784.7,3784.6,2.8166]
[1753834087444,1.0925,3784.7,3784.6,2.3001]
[1753834087644,1.0925,3784.7,3784.6,2.8166]
[1753834090834,40.8,3784.8,3784.6,3.34513]
[1753834091144,40.8,3784.8,3784.7,2.8166]
[1753834091540,0.883,3784.8,3784.7,2.8166]
[1753834094449,44.0078,3785.0,3784.9,1.1015]
[1753834094643,3.2078,3785.0,3784.9,2.6893]
[1753834094836,3.5359,3785.0,3784.9,2.6893]
[1753834095248,3.8404,3785.0,3784.9,2.6893]
[1753834095547,3.9995,3785.0,3784.9,2.6893]
[1753834096141,4.1898,3785.0,3784.9,2.6893]
[1753834099643,4.52798,3785.0,3784.9,2.6893]
[1753834100246,3.9995,3785.0,3784.9,2.6893]
[1753834100948,3.2078,3785.0,3784.9,2.6893]
[1753834101857,3.3072,3785.0,3784.9,2.6893]
[1753834102850,3.5359,3785.0,3784.9,2.6893]
[1753834104651,4.1898,3785.0,3784.9,2.6893]
[1753834107151,4.1898,3785.0,3784.9,2.2246]
[1753834107351,4.3327,3785.0,3784.9,1.4466]
[1753834107850,3.3507,3785.0,3784.3,1.1231]
[1753834108046,0.982,3784.4,3784.3,1.4466]
[1753834108246,1.1249,3784.4,3784.3,0.5002]
[1753834108451,1.5106,3784.1,3784.0,1.1231]
[1753834108647,4.7184,3784.1,3784.0,1.1231]
[1753834108851,4.1898,3784.1,3784.0,1.1231]
[1753834109242,4.1898,3784.1,3784.0,2.2246]
[1753834110649,4.1898,3784.1,3784.0,2.6893]
[1753834111754,3.2078,3784.1,3784.0,2.6893]
[1753834112156,0.982,3784.4,3784.3,2.6893]
[1753834112554,0.62796,3784.5,3784.3,1.1015]
[1753834112754,1.35146,3784.5,3784.4,2.6893]
[1753834113055,1.51056,3784.5,3784.4,2.6893]
[1753834114059,25.7435,3784.6,3784.5,2.6893]
[1753834114353,25.9338,3784.6,3784.5,2.6893]
[1753834119861,25.9338,3784.6,3784.5,2.2246]
[1753834121661,25.9338,3784.6,3784.5,2.6893]
[1753834123862,26.059,3784.6,3784.5,0.5002]
[1753834124264,26.059,3784.6,3784.5,1.1501]
[1753834124961,26.059,3784.6,3784.5,0.5002]
[1753834125166,1.12631,3784.1,3784.0,2.7]
[1753834125466,4.33411,3784.1,3784.0,2.7]
[1753834125765,4.58251,3784.1,3784.0,2.7]
[1753834126355,4.0539,3784.1,3784.0,2.7]
[1753834127965,25.6819,3784.1,3784.0,2.7]
[1753834128161,3.2078,3784.1,3784.0,2.7]
[1753834128567,3.2078,3784.1,3784.0,1.6181]
[1753834129267,3.2895,3784.1,3784.0,1.6181]
[1753834130368,3.2078,3784.1,3784.0,1.6181]
[1753834133168,0.2003,3784.3,3784.2,1.6181]
[1753834133574,0.5977,3784.3,3784.2,1.6181]
[1753834133870,0.6794,3784.3,3784.2,1.6181]
[1753834134465,0.6794,3784.3,3784.2,1.2896]
[1753834134665,0.5977,3784.3,3784.0,0.5286]
[1753834134862,3.2895,3784.1,3784.0,0.5286]
[1753834135065,3.8872,3784.1,3784.0,1.6708]
[1753834135265,44.6872,3784.1,3784.0,1.6708]
[1753834135469,44.6872,3784.1,3784.0,2.1467]
[1753834139672,44.0078,3784.1,3784.0,2.1467]
[1753834139872,3.2078,3784.1,3784.0,2.1467]
[1753834141280,25.42786,3784.5,3784.2,0.52859]
[1753834141581,25.90846,3784.5,3784.4,1.14]
[1753834141778,25.90846,3784.5,3784.4,1.6181]
[1753834142080,25.98196,3784.5,3784.4,1.6181]
[1753834142379,26.09896,3784.5,3784.4,1.14]
[1753834142574,26.09896,3784.5,3783.3,5.274]
[1753834142575,0.3784,3784.1,3784.0,0.8115]
[1753834142779,3.8354,3784.1,3784.0,1.6181]